fUSD/lending_fUSD_20240403
["ID","MTS","AMOUNT","RATE_DAILY","PERIOD"]
[321390865,1712115032190,-560.58443518,0.00029988,2]
[321390867,1712115032200,-265.81796333,0.00029989,2]
[321390870,1712115032211,-2639.48076778,0.0002999,2]
[321390872,1712115032221,-150.99,0.0002999,2]
[321390874,1712115032231,-155.0,0.0003,4]
[321390876,1712115032241,-405.14841286,0.0003,4]
[321390878,1712115032252,-3205.84389542,0.0003,2]
[321390880,1712115032264,-19289.64853053,0.0003,4]
[321390882,1712115032274,-155.0,0.0003,2]
[321390884,1712115032284,-153.94,0.0003,2]
[321390886,1712115032294,-499.99,0.0003,2]
[321390888,1712115032304,-150.99,0.0003,2]
[321390890,1712115032315,-160.62877998,0.00030117,2]
[321390892,1712115032325,-831.0,0.000306,2]
[321390894,1712115032336,-1000.0,0.00030619,2]
[321390896,1712115032346,-28745.08,0.0003062,2]
[321390898,1712115032357,-6241.05,0.0003062,2]
[321390900,1712115032367,-1000.0,0.00032416,2]
[321390902,1712115032377,-160.62877998,0.00032726,2]
[321390904,1712115032388,-2750.4677485,0.000328,4]
[321390906,1712115032397,-9236.32342272,0.0003289,2]
[321390908,1712115032406,-1251.60217459,0.000329,2]
[321390910,1712115032416,-814.57721126,0.00033,4]
[321390912,1712115032426,-274.74779996,0.00033134,2]
[321390915,1712115032436,-320.79,0.00033436,2]
[321390918,1712115032445,-380.06,0.00034185,2]
[321390920,1712115032455,-526.25,0.00034276,2]
[321390922,1712115032464,-526.25,0.0003437,2]
[321390924,1712115032476,-656.64,0.00034434,2]
[321390926,1712115032486,-526.25,0.00034464,2]
[321390928,1712115032496,-500.0,0.00034465,2]
[321390930,1712115032505,-1292.04,0.00034535,2]
[321390932,1712115032515,-150.0,0.00034556,2]
[321390934,1712115032524,-201.3,0.00034556,2]
[321390936,1712115032534,-526.25,0.00034558,2]
[321390938,1712115032546,-2507.42,0.00034602,2]
[321390940,1712115032555,-3709.48,0.00034647,2]
[321390942,1712115032565,-526.25,0.00034652,2]
[321390944,1712115032575,-250.0,0.00034696,112]
[321390946,1712115032586,-165.97,0.00034702,2]
[321390948,1712115032597,-526.25,0.00034746,2]
[321390950,1712115032607,-9053.58976532,0.000348,4]
[321390952,1712115032616,-526.25,0.0003484,2]
[321390954,1712115032626,-526.25,0.00034934,2]
[321390955,1712115032636,-155.4,0.00034978,2]
[321390956,1712115032646,-1281.21723531,0.00035,4]
[321390957,1712115032656,-526.25,0.00035028,2]
[321390958,1712115032668,-23900.0,0.00035063,2]
[321390959,1712115032678,-526.25,0.00035122,2]
[321390960,1712115032688,-526.25,0.00035216,2]
[321390961,1712115032698,-2203.82,0.00035241,2]
[321390962,1712115032709,-526.25,0.0003531,2]
[321390963,1712115032719,-160.62877998,0.00035335,2]
[321390964,1712115032730,-526.25,0.00035404,2]
[321390965,1712115032741,-526.25,0.00035498,2]
[321390966,1712115032750,-526.25,0.00035592,2]
[321390967,1712115032761,-1000.0,0.00035657,2]
[321390968,1712115032771,-526.25,0.00035686,2]
[321390969,1712115032781,-526.25,0.0003578,2]
[321390970,1712115032792,-1668.99124747,0.00035814,2]
[321390971,1712115032803,-176.23,0.00035862,2]
[321390972,1712115032813,-526.25,0.00035874,2]
[321390973,1712115033051,-3963.8615115,0.00035904,2]
[321390974,1712115033080,-1027.85,0.00035914,2]
[321390975,1712115033090,-246.89585177,0.00035956,15]
[321390976,1712115033100,-26638.86,0.00035957,2]
[321390977,1712115033109,-526.25,0.00035968,2]
[321390978,1712115033118,-10000.0,0.00036004,2]
[321390979,1712115033127,-1072.17,0.0003606,2]
[321390980,1712115033136,-526.25,0.00036062,2]
[321390981,1712115033146,-631.59606109,0.00036154,2]
[321390982,1712115033155,-263.73,0.00036306,2]
[321390983,1712115033165,-155.4,0.00036343,2]
[321390984,1712115033179,-380.06,0.00036448,2]
[321390985,1712115033189,-250.0,0.00036678,2]
[321390986,1712115033198,-229.36,0.00037018,2]
[321390987,1712115033207,-174.66,0.00037058,2]
[321390988,1712115033218,-237.78,0.00037142,120]
[321390989,1712115033229,-3334.78,0.00037259,2]
[321390990,1712115033239,-3709.48,0.00037386,2]
[321390991,1712115033248,-155.4,0.00037709,2]
[321390992,1712115033257,-1251.60217458,0.00037794,2]
[321390993,1712115033267,-156.64,0.00037808,2]
[321390994,1712115033276,-153.73,0.00037808,2]
[321390995,1712115033284,-206.0,0.00037875,2]
[321390996,1712115033293,-214.0,0.00037875,2]
[321390997,1712115033302,-1196.0,0.00037875,2]
[321390998,1712115033311,-2558.84040065,0.00037875,2]
[321390999,1712115033348,-1112.07629639,0.00037875,2]
[321391000,1712115033359,-1090.13882869,0.00037875,2]
[321391001,1712115033375,-22.94447427,0.00037875,2]
[321391002,1712115033384,-160.62877998,0.00037944,2]
[321391003,1712115033394,-180.0,0.00038012,2]
[321391004,1712115033403,-572.89,0.00038027,15]
[321391005,1712115033412,-1668.99124741,0.00038046,2]
[321391006,1712115033421,-3963.86151141,0.00038126,2]
[321391007,1712115033430,-380.06,0.00038712,2]
[321391008,1712115033439,-1000.0,0.00038899,2]
[321391009,1712115033449,-4064.11230153,0.000389,15]
[321391010,1712115033458,-155.4,0.00039075,2]
[321391011,1712115033468,-1125.678589,0.00039197,4]
[321391012,1712115033479,-810.01,0.00039918,2]
[321391013,1712115033488,-165.06,0.0003999,2]
[321391014,1712115033497,-490.30927539,0.00039997,4]
[321391015,1712115033506,-274.32618057,0.00039997,4]
[321391016,1712115033515,-11518.92860008,0.00039999,2]
[321391017,1712115033524,-14298.76946184,0.00039999,2]
[321391018,1712115033533,-5757.17728566,0.0004,4]
[321391019,1712115033542,-486.04221495,0.0004,4]
[321391020,1712115033552,-192.70693193,0.0004,2]
[321391021,1712115033562,-1828.54434568,0.0004,10]
[321391022,1712115033571,-16914.5588003,0.0004,4]
[321391055,1712115037880,-300.001,0.00037875,2]
[321391057,1712115037890,-4705.6354,0.0004,4]
[321391063,1712115037964,-477.97545254,0.0004,4]
[321391065,1712115037973,-3352.54061562,0.0004,4]
[321391067,1712115037984,-175.23267945,0.0004,2]
[321391069,1712115037993,-200.0,0.0004,2]
[321391070,1712115038002,-3709.48,0.00040126,2]
[321391072,1712115038011,-1668.99124741,0.00040278,2]
[321391074,1712115038020,-3963.86151141,0.00040348,2]
[321391075,1712115038029,-155.4,0.0004044,2]
[321391077,1712115038038,-160.62877998,0.00040554,2]
[321391079,1712115038049,-1236.4,0.00040562,2]
[321391081,1712115038058,-572.89,0.00040767,15]
[321391082,1712115038067,-206.0,0.00040875,2]
[321391084,1712115038077,-214.0,0.00040875,2]
[321391086,1712115038086,-225.288,0.00040875,2]
[321391088,1712115038095,-4784.0,0.00040875,2]
[321391089,1712115038104,-1206.38123811,0.00040876,10]
[321391091,1712115038114,-39977.64896118,0.0004088,2]
[321391093,1712115038123,-380.06,0.00040976,2]
[321391095,1712115038132,-183.0,0.00041096,2]
[321391096,1712115038142,-158.02,0.0004154,30]
[321391098,1712115038151,-155.4,0.00041806,2]
[321391100,1712115038160,-150.0,0.00042056,2]
[321391102,1712115038170,-150.0,0.00042056,2]
[321391104,1712115038180,-152.96,0.00042056,2]
[321391105,1712115038190,-1668.99124741,0.00042509,2]
[321391107,1712115038199,-3963.86151141,0.00042569,2]
[321391109,1712115038208,-623.53688227,0.0004284,4]
[321391110,1712115038218,-1206.3812381,0.00042888,11]
[321391112,1712115038228,-396.2728949,0.00042983,15]
[321391114,1712115038237,-721.41904155,0.00043,4]
[321391116,1712115038246,-160.62877998,0.00043163,2]
[321391117,1712115038257,-155.4,0.00043171,2]
[321391119,1712115038267,-380.06,0.0004324,2]
[321391121,1712115038276,-572.89,0.00043507,15]
[321391123,1712115038285,-186.36,0.00043836,2]
[321391124,1712115038294,-206.0,0.00043875,2]
[321391126,1712115038306,-214.0,0.00043875,2]
[321391128,1712115038315,-2166.712,0.00043875,2]
[321391130,1712115038324,-155.4,0.00044537,2]
[321391131,1712115038333,-3963.86151141,0.00044791,2]
[321391133,1712115038342,-544.27546659,0.0004489,10]
[321391136,1712115038351,-1206.3812381,0.000449,12]
[321391139,1712115038360,-170.22577968,0.00045,7]
[321391142,1712115038369,-328.38424403,0.00045,4]
[321391145,1712115038378,-172.25,0.00045461,2]
[321391147,1712115038387,-380.06,0.00045504,2]
[321391150,1712115038397,-160.62877998,0.00045772,2]
[321391153,1712115038406,-155.4,0.00045903,2]
[321391156,1712115038416,-96.45819429,0.00046,4]
[321391161,1712115038437,-1612.05385673,0.00046,4]
[321391163,1712115038446,-572.89,0.00046247,15]
[321391165,1712115038456,-211.25,0.00046746,2]
[321391166,1712115038465,-203.674,0.00046875,2]
[321391167,1712115038474,-214.0,0.00046875,2]
[321391168,1712115038484,-1206.3812381,0.00046912,13]
[321391169,1712115038493,-211.25,0.00046979,2]
[321391171,1712115038503,-3963.86151141,0.00047013,2]
[321391173,1712115038512,-155.4,0.00047268,2]
[321391175,1712115038522,-380.06,0.00047768,2]
[321391177,1712115038531,-160.62877998,0.00048381,2]
[321391179,1712115038541,-3373.03554017,0.000484,2]
[321391181,1712115038550,-155.4,0.00048634,2]
[321391182,1712115038560,-1047.0,0.000487,117]
[321391184,1712115038569,-1206.3812381,0.00048925,13]
[321391186,1712115038578,-572.89,0.00048986,15]
[321391188,1712115038588,-1211.0,0.00049,4]
[321391190,1712115038597,-904.55,0.00049158,2]
[321391192,1712115038606,-3963.86151141,0.00049235,2]
[321391194,1712115038615,-186.36,0.00049315,2]
[321391196,1712115038624,-150.0,0.00049432,60]
[321391198,1712115038633,-416.91,0.00049432,30]
[321391222,1712115038855,-519.19,0.00049432,30]
[321391224,1712115038868,-150.0,0.00049432,30]
[321391226,1712115038877,-150.0,0.00049432,30]
[321391229,1712115038887,-150.0,0.00049432,30]
[321391231,1712115038896,-150.0,0.00049432,30]
[321391233,1712115038905,-348.46,0.00049432,30]
[321391235,1712115038914,-161.88,0.00049432,30]
[321391237,1712115038923,-150.0,0.000498,72]
[321391239,1712115038933,-1008.88,0.000498,2]
[321391240,1712115038942,-303.92,0.000498,2]
[321391243,1712115038951,-1097.24738744,0.00049863,120]
[321391245,1712115038967,-940.32261256,0.00049863,120]
[321391247,1712115038979,-214.0,0.00049875,2]
[321391249,1712115038988,-155.4,0.00049999,2]
[321391251,1712115038998,-27093.29378832,0.0005,4]
[321391253,1712115039007,-5000.0,0.0005,30]
[321391255,1712115039017,-155.01554647,0.0005,2]
[321391257,1712115039029,-4153.0,0.0005,9]
[321391259,1712115039038,-380.06,0.00050032,2]
[321391261,1712115039047,-3000.0,0.000501,2]
[321391263,1712115039056,-1060.9701,0.00050154,2]
[321391265,1712115039066,-150.0,0.000505,10]
[321391267,1712115039075,-1206.3812381,0.00050937,14]
[321391269,1712115039084,-559.98667228,0.00051,4]
[321391271,1712115039094,-150.0,0.00051,10]
[321391273,1712115039103,-294.24541701,0.00051033,60]
[321391275,1712115039112,-183.76006558,0.00051052,60]
[321391277,1712115039122,-150.46417219,0.00051083,60]
[321391279,1712115039131,-152.97862122,0.0005114,60]
[321391281,1712115039140,-294.24541701,0.00051171,60]
[321391283,1712115039150,-1000.0,0.000512,7]
[321391285,1712115039159,-150.46417219,0.00051222,60]
[321391287,1712115039169,-294.24541701,0.00051279,60]
[321391289,1712115039181,-1008.88,0.00051295,2]
[321391291,1712115039190,-153.53105328,0.00051332,60]
[321391293,1712115039203,-152.97862122,0.00051363,60]
[321391295,1712115039213,-155.4,0.00051365,2]
[321391297,1712115039222,-576.79002236,0.00051385,60]
[321391299,1712115039236,-3963.86151141,0.00051456,2]
[321391301,1712115039245,-183.76006558,0.00051482,60]
[321391303,1712115039255,-150.0,0.000515,10]
[321391305,1712115039267,-150.46417219,0.00051509,60]
[321391307,1712115039277,-152.97862122,0.00051541,60]
[321391309,1712115039286,-294.24541701,0.00051552,60]
[321391311,1712115039296,-153.40691446,0.00051579,60]
[321391313,1712115039307,-183.76006558,0.00051587,60]
[321391315,1712115039317,-303.92,0.00051595,2]
[321391317,1712115039327,-153.53105328,0.0005162,60]
[321391319,1712115039337,-150.44101684,0.00051634,60]
[321391321,1712115039346,-153.40691446,0.000517,60]
[321391323,1712115039356,-155.64422399,0.00051714,60]
[321391325,1712115039364,-294.24541701,0.00051716,60]
[321391327,1712115039374,-572.89,0.00051726,120]
[321391329,1712115039383,-153.40691446,0.00051751,60]
[321391331,1712115039393,-2305.6,0.00051788,117]
[321391333,1712115039401,-1236.4,0.00051795,120]
[321391334,1712115039411,-155.64422399,0.00051822,60]
[321391335,1712115039421,-150.46417219,0.00051854,60]
[321391336,1712115039430,-152.97862122,0.00051855,60]
[321391337,1712115039440,-294.24541701,0.00051907,60]
[321391338,1712115039449,-155.64422399,0.00051932,60]
[321391339,1712115039458,-204.882,0.0005194,120]
[321391340,1712115039467,-204.882,0.0005194,120]
[321391341,1712115039477,-155.64422399,0.00051966,60]
[321391342,1712115039487,-150.46417219,0.00051969,60]
[321391343,1712115039497,-153.40691446,0.00051996,60]
[321391344,1712115039506,-150.0,0.00052,11]
[321391345,1712115039515,-150.46417219,0.00052016,60]
[321391346,1712115039525,-294.24541701,0.00052027,60]
[321391347,1712115039535,-294.24541701,0.00052045,60]
[321391349,1712115039543,-485.96508342,0.00052095,120]
[321391350,1712115039553,-154.12212371,0.00052112,60]
[321391351,1712115039563,-576.79002236,0.00052116,60]
[321391352,1712115039572,-294.24541701,0.00052147,60]
[321391353,1712115039582,-153.53105328,0.00052199,60]
[321391354,1712115039591,-150.46417219,0.00052257,60]
[321391356,1712115039603,-183.76006558,0.00052259,60]
[321391358,1712115039613,-380.06,0.00052296,2]
[321391359,1712115039622,-155.64422399,0.00052323,60]
[321391360,1712115039632,-153.40691446,0.00052324,60]
[321391361,1712115039642,-71249.96342101,0.0005235,7]
[321391363,1712115039652,-155.01816656,0.00052382,60]
[321391364,1712115039661,-150.44101684,0.000524,60]
[321391365,1712115039670,-294.24541701,0.00052402,60]
[321391366,1712115039680,-183.76006558,0.00052441,60]
[321391367,1712115039689,-150.0,0.000525,11]
[321391368,1712115039698,-154.12212371,0.000525,60]
[321391369,1712115039708,-1000.0,0.000525,7]
[321391370,1712115039717,-159.95030803,0.00052531,60]
[321391371,1712115039728,-150.0,0.0005254,7]
[321391372,1712115039738,-576.79002236,0.00052561,60]
[321391373,1712115039748,-183.76006558,0.00052564,60]
[321391374,1712115039757,-150.46417219,0.00052573,60]
[321391375,1712115039766,-150.44101684,0.00052584,60]
[321391376,1712115039775,-150.46417219,0.00052673,60]
[321391377,1712115039785,-155.4,0.0005273,2]
[321391378,1712115039795,-154.27788653,0.00052749,60]
[321391379,1712115039804,-152.23387178,0.00052778,60]
[321391380,1712115039813,-1008.88,0.0005279,2]
[321391382,1712115039822,-214.0,0.00052875,2]
[321391383,1712115039832,-2655.0,0.000529,2]
[321391384,1712115039841,-152.97862122,0.00052937,60]
[321391385,1712115039850,-153.53105328,0.00052939,60]
[321391386,1712115039859,-1206.3812381,0.00052949,14]
[321391387,1712115039869,-172.25,0.00052964,2]
[321391388,1712115039878,-154.12212371,0.00052968,60]
[321391389,1712115039887,-150.0,0.00052982,7]
[321391390,1712115039897,-489.84,0.00053,120]
[321391391,1712115039906,-878.0,0.00053,100]
[321391392,1712115039915,-496.59051175,0.00053,18]
[321391393,1712115039925,-200.000002,0.00053,31]
[321391394,1712115039934,-150.0,0.00053,11]
[321391395,1712115039943,-2230.60955782,0.00053,5]
[321391396,1712115039952,-151.29625457,0.00053007,60]
[321391397,1712115039962,-150.44101684,0.00053025,60]
[321391398,1712115039971,-150.44101684,0.00053033,60]
[321391399,1712115039982,-152.97862122,0.00053054,60]
[321391400,1712115039992,-152.97862122,0.00053093,60]
[321391401,1712115040001,-183.76006558,0.00053101,60]
[321391402,1712115040010,-153.53105328,0.00053167,60]
[321391403,1712115040020,-183.76006558,0.00053214,60]
[321391404,1712115040029,-153.53105328,0.00053242,60]
[321391405,1712115040038,-576.79002236,0.00053253,60]
[321391406,1712115040048,-152.97862122,0.00053378,60]
[321391407,1712115040057,-153.40691446,0.00053388,60]
[321391408,1712115040066,-303.92,0.0005339,2]
[321391409,1712115040076,-155.0,0.00053393,60]
[321391410,1712115040085,-500.0,0.000534,90]
[321391411,1712115040094,-500.0,0.000534,90]
[321391412,1712115040103,-501.81800286,0.00053424,30]
[321391413,1712115040112,-192.83,0.00053425,30]
[321391414,1712115040122,-150.44101684,0.00053442,60]
[321391415,1712115040131,-55288.33070303,0.0005346,2]
[321391416,1712115040141,-153.40691446,0.00053492,60]
[321391417,1712115040150,-878.0,0.000535,101]
[321391418,1712115040159,-150.0,0.000535,11]
[321391419,1712115040170,-1304.32637434,0.00053505,2]
[321391420,1712115040181,-294.24541701,0.00053513,60]
[321391421,1712115040192,-150.46417219,0.00053534,60]
[321391422,1712115040202,-155.80724411,0.00053587,60]
[321391423,1712115040211,-576.79002236,0.00053598,60]
[321391424,1712115040219,-294.24541701,0.00053625,60]
[321391425,1712115040232,-154.35503135,0.00053649,60]
[321391426,1712115040241,-576.79002236,0.00053658,60]
[321391427,1712115040250,-576.79002236,0.00053662,60]
[321391428,1712115040260,-183.76006558,0.00053666,60]
[321391429,1712115040270,-3963.86151141,0.00053678,2]
[321391430,1712115040279,-406864.31800928,0.0005369,30]
[321391431,1712115040288,-151.63,0.00053699,30]
[321391432,1712115040297,-161.57,0.00053699,30]
[321391433,1712115040306,-150.0,0.00053699,30]
[321391434,1712115040316,-150.0,0.00053699,30]
[321391435,1712115040325,-150.0,0.00053699,30]
[321391436,1712115040334,-150.0,0.00053699,30]
[321391437,1712115040344,-152.29,0.00053699,30]
[321391438,1712115040354,-239.45,0.00053699,30]
[321391439,1712115040363,-344.62,0.00053699,30]
[321391440,1712115040373,-375.87,0.00053699,30]
[321391441,1712115040383,-150.0,0.00053699,30]
[321391442,1712115040393,-150.0,0.00053699,30]
[321391443,1712115040403,-150.0,0.00053699,30]
[321391444,1712115040412,-800.0,0.00053707,30]
[321391445,1712115040422,-150.0,0.00053749,7]
[321391446,1712115040431,-387.60626693,0.0005375,30]
[321391447,1712115040440,-152.97862122,0.00053764,60]
[321391448,1712115040449,-250000.0,0.0005377,7]
[321391449,1712115040458,-150.44101684,0.00053787,60]
[321391450,1712115040467,-150.0,0.00053792,60]
[321391451,1712115040478,-1015.74,0.000538,30]
[321391452,1712115040487,-271.51108099,0.000538,31]
[321391453,1712115040497,-667.13589,0.000538,67]
[321391454,1712115040506,-39417.3499,0.000538,120]
[321391455,1712115040515,-1000.0,0.000538,7]
[321391456,1712115040525,-150.44101684,0.00053808,60]
[321391457,1712115040534,-150.0,0.00053824,7]
[321391458,1712115040544,-152.71473255,0.00053824,11]
[321391459,1712115040554,-500.0,0.00053829,30]
[321391460,1712115040563,-576.79002236,0.00053866,60]
[321391461,1712115040572,-150.0,0.00053876,7]
[321391462,1712115040581,-150.0,0.00053879,7]
[321391463,1712115040591,-245000.0,0.000539,2]
[321391464,1712115040600,-5663.1042,0.000539,15]
[321391465,1712115040609,-18328.75750795,0.000539,60]
[321391466,1712115040619,-294.24541701,0.0005391,60]
[321391467,1712115040628,-152.97862122,0.00053913,60]
[321391468,1712115040638,-154.27788653,0.00053933,60]
[321391469,1712115040647,-153.40691446,0.00053946,60]
[321391470,1712115040657,-581.4638313,0.00053948,90]
[321391471,1712115040666,-500.0,0.00053948,90]
[321391472,1712115040676,-576.79002236,0.00053951,60]
[321391473,1712115040685,-500.0,0.00053952,30]
[321391474,1712115040695,-150.46417219,0.00053964,60]
[321391475,1712115040704,-7500.0,0.00053968,3]
[321391476,1712115040713,-150.0,0.00053986,7]
[321391477,1712115040723,-576.79002236,0.00053994,60]
[321391478,1712115040734,-150.0,0.00053999,7]
[321391479,1712115040744,-1411.24895947,0.00054,31]
[321391480,1712115040753,-2200.00786575,0.00054,20]
[321391481,1712115040762,-500000.0,0.00054,2]
[321391482,1712115040772,-156.48332019,0.00054,4]
[321391483,1712115040781,-23994.18145881,0.00054,2]
[321391484,1712115040790,-156.35855924,0.00054,4]
[321391485,1712115040800,-8918.4993521,0.00054,30]
[321391486,1712115040809,-7526.89784249,0.00054,120]
[321391487,1712115040819,-2000.0,0.00054,120]
[321391488,1712115040830,-1500.0,0.00054,120]
[321391489,1712115040840,-1000.0,0.00054,120]
[321391490,1712115040849,-199.0,0.00054,30]
[321391491,1712115040858,-696.88749781,0.00054,30]
[321391492,1712115040867,-2000.0,0.00054,15]
[321391493,1712115040877,-200.0,0.00054,15]
[321391494,1712115040886,-878.0,0.00054,102]
[321391495,1712115040894,-200.0,0.00054,15]
[321391496,1712115040904,-150.0,0.00054,11]
[321391497,1712115040913,-261.62135738,0.00054,2]
[321391498,1712115040922,-178.810342,0.00054,30]
[321391499,1712115040931,-915.57841221,0.00054002,120]
[321391500,1712115040941,-151.29625457,0.00054006,60]
[321391501,1712115040950,-3751.9279635,0.00054011,2]
[321391502,1712115040959,-46338.4712232,0.00054011,2]
[321391503,1712115040968,-7133.8411601,0.00054011,2]
[321391504,1712115040977,-14088.3010658,0.00054011,2]
[321391505,1712115040986,-150.0,0.00054019,7]
[321391506,1712115040995,-150.0,0.0005402,7]
[321391507,1712115041005,-150.0,0.00054025,7]
[321391508,1712115041015,-294.24541701,0.00054048,60]
[321391509,1712115041024,-154.27788653,0.00054055,60]
[321391510,1712115041033,-150.44101684,0.00054062,60]
[321391511,1712115041043,-500.0,0.00054068,7]
[321391512,1712115041052,-500.0,0.00054068,7]
[321391513,1712115041061,-500.0,0.00054068,7]
[321391514,1712115041070,-500.0,0.00054068,7]
[321391515,1712115041079,-500.0,0.00054068,7]
[321391516,1712115041088,-500.0,0.00054068,7]
[321391517,1712115041098,-500.0,0.00054068,7]
[321391518,1712115041107,-500.0,0.00054068,7]
[321391519,1712115041116,-500.0,0.00054068,7]
[321391520,1712115041125,-500.0,0.00054068,7]
[321391521,1712115041134,-500.0,0.00054068,7]
[321391522,1712115041144,-500.0,0.00054068,7]
[321391523,1712115041153,-500.0,0.00054068,7]
[321391524,1712115041162,-500.0,0.00054068,7]
[321391525,1712115041173,-500.0,0.00054068,7]
[321391526,1712115041185,-500.0,0.00054068,7]
[321391527,1712115041196,-500.0,0.00054068,7]
[321391528,1712115041206,-500.0,0.00054068,7]
[321391529,1712115041215,-500.0,0.00054068,7]
[321391530,1712115041225,-500.0,0.00054068,7]
[321391531,1712115041234,-500.0,0.00054068,7]
[321391532,1712115041244,-500.0,0.00054068,7]
[321391533,1712115041253,-585.78,0.00054068,7]
[321391534,1712115041265,-500.0,0.00054068,7]
[321391535,1712115041274,-500.0,0.00054068,7]
[321391536,1712115041283,-500.0,0.00054068,7]
[321391537,1712115041293,-500.0,0.00054068,7]
[321391538,1712115041302,-500.0,0.00054068,7]
[321391539,1712115041311,-500.0,0.00054068,7]
[321391540,1712115041321,-500.0,0.00054068,7]
[321391541,1712115041330,-500.0,0.00054068,7]
[321391542,1712115041339,-500.0,0.00054068,7]
[321391543,1712115041349,-500.0,0.00054068,7]
[321391544,1712115041359,-500.0,0.00054068,7]
[321391545,1712115041368,-500.0,0.00054068,7]
[321391546,1712115041378,-500.0,0.00054068,7]
[321391547,1712115041389,-500.0,0.00054068,7]
[321391548,1712115041399,-500.0,0.00054068,7]
[321391549,1712115041408,-500.0,0.00054068,7]
[321391550,1712115041418,-500.0,0.00054068,7]
[321391551,1712115041428,-500.0,0.00054068,7]
[321391552,1712115041439,-500.0,0.00054068,7]
[321391553,1712115041448,-500.0,0.00054068,7]
[321391554,1712115041458,-500.0,0.00054068,7]
[321391555,1712115041467,-500.0,0.00054068,7]
[321391556,1712115041477,-500.0,0.00054068,7]
[321391557,1712115041487,-500.0,0.00054068,7]
[321391558,1712115041496,-500.0,0.00054068,7]
[321391559,1712115041507,-500.0,0.00054068,7]
[321391560,1712115041516,-500.0,0.00054068,7]
[321391561,1712115041525,-500.0,0.00054068,7]
[321391562,1712115041535,-500.0,0.00054068,7]
[321391563,1712115041545,-500.0,0.00054068,7]
[321391564,1712115041555,-500.0,0.00054068,7]
[321391565,1712115041565,-456.94,0.00054068,7]
[321391566,1712115041575,-150.0,0.00054073,7]
[321391567,1712115041585,-500.0,0.00054074,30]
[321391568,1712115041594,-150.0,0.0005408,7]
[321391569,1712115041604,-150.44101684,0.0005408,60]
[321391570,1712115041613,-150.0,0.00054094,7]
[321391571,1712115041623,-150.44101684,0.00054108,60]
[321391572,1712115041633,-1304.32637435,0.00054149,2]
[321391573,1712115041643,-500.0,0.00054154,4]
[321391574,1712115041652,-500.0,0.00054154,4]
[321391575,1712115041663,-500.0,0.00054154,4]
[321391576,1712115041674,-500.0,0.00054154,4]
[321391577,1712115041684,-500.0,0.00054154,4]
[321391578,1712115041694,-500.0,0.00054154,4]
[321391579,1712115041705,-500.0,0.00054154,4]
[321391580,1712115041715,-500.0,0.00054154,4]
[321391581,1712115041725,-500.0,0.00054154,4]
[321391582,1712115041737,-500.0,0.00054154,4]
[321391583,1712115041747,-500.0,0.00054154,4]
[321391584,1712115041757,-500.0,0.00054154,4]
[321391585,1712115041768,-500.0,0.00054154,4]
[321391586,1712115041779,-500.0,0.00054154,4]
[321391587,1712115041789,-500.0,0.00054154,4]
[321391588,1712115041798,-500.0,0.00054154,4]
[321391589,1712115041808,-500.0,0.00054154,4]
[321391590,1712115041819,-500.0,0.00054154,4]
[321391591,1712115041830,-500.0,0.00054154,4]
[321391592,1712115041840,-312.0,0.00054154,4]
[321391593,1712115041852,-153.53105328,0.00054156,60]
[321391594,1712115041861,-150.0,0.00054175,7]
[321391595,1712115041872,-150.0,0.00054178,7]
[321391596,1712115041881,-150.0,0.00054185,7]
[321391597,1712115041891,-150.0,0.00054188,7]